bitfinex/quotes_BTCUSD_20240719
["timestamp","ask_amount","ask_price","bid_price","bid_amount"]
[1721369882932,0.00083,64514.0,64513.0,1.39408674]
[1721369883356,0.00183,64514.0,64513.0,1.40608674]
[1721369884064,0.00183,64514.0,64513.0,1.41808674]
[1721369884482,0.00183,64514.0,64513.0,1.10807174]
[1721369884684,0.00083,64514.0,64513.0,0.166653]
[1721369884992,0.00083,64514.0,64513.0,0.178653]
[1721369885377,0.00083,64514.0,64513.0,0.631675]
[1721369885583,0.00083,64514.0,64513.0,0.643675]
[1721369886196,0.00283,64514.0,64513.0,0.643675]
[1721369886605,0.00083,64514.0,64513.0,0.631675]
[1721369887214,0.00083,64514.0,64513.0,0.166653]
[1721369888176,0.00083,64514.0,64513.0,0.32166]
[1721369888715,0.00083,64514.0,64513.0,0.30966]
[1721369888930,0.00083,64514.0,64513.0,0.166653]
[1721369889123,0.00183,64514.0,64513.0,0.178653]
[1721369889524,0.156835,64514.0,64513.0,0.178653]
[1721369889723,0.776855,64514.0,64513.0,0.032653]
[1721369889979,0.84651845,64514.0,64513.0,0.032653]
[1721369890267,1.15042087,64514.0,64513.0,0.032653]
[1721369890486,1.26630548,64514.0,64513.0,0.032653]
[1721369890687,1.18951857,64514.0,64513.0,0.032653]
[1721369891012,1.18951818,64514.0,64513.0,0.032653]
[1721369891215,1.17342087,64514.0,64513.0,0.032653]
[1721369891389,1.17342087,64514.0,64513.0,0.020653]
[1721369891390,1.18851819,64514.0,64513.0,0.020653]
[1721369891749,1.18951819,64514.0,64513.0,0.028653]
[1721369892152,1.18853127,64514.0,64513.0,0.028653]
[1721369892357,1.18853047,64514.0,64513.0,0.016653]
[1721369892720,1.18853047,64514.0,64513.0,0.024653]
[1721369894977,1.18853043,64514.0,64513.0,0.024653]
[1721369895183,1.17243315,64514.0,64513.0,0.024653]
[1721369895544,1.109865,64514.0,64513.0,0.024653]
[1721369895745,1.17229988,64514.0,64513.0,0.024653]
[1721369895923,1.79129162,64514.0,64513.0,0.024653]
[1721369896309,1.88811372,64514.0,64513.0,0.024653]
[1721369896508,2.04487037,64514.0,64513.0,0.024653]
[1721369896908,2.04487037,64514.0,64513.0,0.016653]
[1721369897276,1.88711372,64514.0,64513.0,0.008653]
[1721369897481,1.085353,64495.0,64494.0,0.000913]
[1721369897698,1.24017476,64495.0,64494.0,0.000913]
[1721369897831,1.28639456,64495.0,64494.0,0.000913]
[1721369898036,1.17029555,64495.0,64494.0,0.000913]
[1721369898627,1.63477829,64495.0,64494.0,0.000913]
[1721369898826,1.78912786,64495.0,64494.0,0.000913]
[1721369899036,1.63477829,64495.0,64494.0,0.000913]
[1721369899251,1.63477829,64495.0,64494.0,0.003913]
[1721369899653,1.32467729,64495.0,64494.0,0.003913]
[1721369899854,1.32467729,64495.0,64494.0,0.006913]
[1721369899855,1.17029555,64495.0,64494.0,0.006913]
[1721369900319,1.23987395,64495.0,64494.0,0.006913]
[1721369900526,0.465151,64495.0,64494.0,0.006913]
[1721369900737,0.82163421,64495.0,64494.0,0.006913]
[1721369901701,0.82162417,64495.0,64494.0,0.006913]
[1721369901929,0.51152321,64495.0,64494.0,0.006913]
[1721369902134,0.465151,64495.0,64494.0,0.068113]
[1721369902317,0.775252,64495.0,64494.0,0.068113]
[1721369902682,0.84462421,64495.0,64494.0,0.006913]
[1721369902818,1.15472521,64495.0,64494.0,0.006913]
[1721369903017,0.84462421,64495.0,64494.0,0.006913]
[1721369903580,0.798252,64495.0,64494.0,0.006913]
[1721369904779,1.18368864,64495.0,64494.0,0.006913]
[1721369905036,1.38807038,64495.0,64494.0,0.006913]
[1721369905244,1.52076527,64495.0,64494.0,0.006913]
[1721369905539,1.45124487,64495.0,64494.0,0.006913]
[1721369905904,1.32590923,64495.0,64494.0,0.006913]
[1721369906114,1.39542032,64495.0,64494.0,0.006913]
[1721369907565,1.32590923,64495.0,64494.0,0.006913]
[1721369907917,1.26363474,64495.0,64494.0,0.006913]
[1721369908151,1.32635059,64495.0,64494.0,0.006913]
[1721369908364,1.37266468,64495.0,64494.0,0.006913]
[1721369908587,1.57701425,64495.0,64494.0,0.006913]
[1721369908947,1.63070016,64495.0,64494.0,0.006913]
[1721369909423,1.72334608,64495.0,64494.0,0.006913]
[1721369910068,2.03344708,64495.0,64494.0,0.006913]
[1721369910457,1.94080116,64495.0,64494.0,0.006913]
[1721369911007,1.87808531,64495.0,64494.0,0.006913]
[1721369911211,2.03339064,64495.0,64494.0,0.006913]
[1721369911361,1.94080001,64495.0,64494.0,0.006913]
[1721369912237,2.01021486,64495.0,64494.0,0.006913]
[1721369912616,1.85586529,64495.0,64494.0,0.006913]
[1721369913277,1.78555044,64495.0,64494.0,0.006913]
[1721369913610,1.83181337,64495.0,64494.0,0.006913]
[1721369913786,1.78181337,64495.0,64494.0,0.006913]
[1721369914153,1.78150783,64495.0,64494.0,0.006913]
[1721369914400,1.9358574,64495.0,64494.0,0.006913]
[1721369914603,1.9858574,64495.0,64494.0,0.006913]
[1721369914943,1.9395946,64495.0,64494.0,0.006913]
[1721369915699,1.78524503,64495.0,64494.0,0.006913]
[1721369915906,1.42514403,64495.0,64494.0,0.006913]
[1721369917082,1.36273474,64495.0,64494.0,0.006913]
[1721369917282,1.42405305,64495.0,64494.0,0.006913]
[1721369918883,1.26967131,64495.0,64494.0,0.006913]
[1721369919496,0.06131831,64495.0,64494.0,0.006913]
[1721369919716,0.155045,64498.0,64494.0,0.150813]
[1721369919717,0.310087,64498.0,64494.0,0.150813]
[1721369919924,0.1612231,64497.0,64494.0,0.150813]
[1721369920125,0.465151,64495.0,64494.0,0.150813]
[1721369920788,0.465151,64495.0,64494.0,0.144813]
[1721369921775,0.465151,64495.0,64494.0,0.147813]
[1721369921953,0.15505,64495.0,64494.0,0.147813]
[1721369922678,0.155047,64497.0,64496.0,0.1413]
[1721369922905,0.001,64498.0,64497.0,0.1413]
[1721369923256,0.155042,64499.0,64498.0,0.1413]
[1721369924530,0.06344133,64499.0,64498.0,0.1413]
[1721369924943,0.002,64499.0,64497.0,0.1413]
[1721369925146,0.06344133,64498.0,64496.0,0.156047]
[1721369925440,0.06344133,64498.0,64497.0,0.296345]
[1721369925636,0.003,64499.0,64498.0,0.1474]
[1721369926214,0.002,64499.0,64498.0,0.1474]
[1721369926398,0.155033,64503.0,64498.0,0.1474]
[1721369926602,0.155033,64503.0,64497.0,0.155045]
[1721369926603,0.001,64498.0,64497.0,0.302445]
[1721369927082,0.155033,64503.0,64497.0,0.155045]
[1721369927316,0.06343075,64502.0,64498.0,0.1474]
[1721369927517,0.002,64499.0,64498.0,0.1474]
[1721369927640,0.155034,64502.0,64498.0,0.1474]
[1721369928030,0.06348212,64501.0,64498.0,0.1474]
[1721369928794,0.21851812,64501.0,64498.0,0.1474]
[1721369928996,0.21852212,64500.0,64498.0,0.1474]
[1721369929198,0.06348212,64499.0,64498.0,0.1474]
[1721369929402,0.52860512,64499.0,64498.0,0.1474]
[1721369929616,0.52790923,64499.0,64498.0,0.1474]
[1721369930020,0.21782723,64499.0,64498.0,0.1474]
[1721369930857,0.52990923,64499.0,64498.0,0.1474]
[1721369931526,0.53090923,64499.0,64498.0,0.1474]
[1721369932116,0.468123,64499.0,64498.0,0.1474]
[1721369934399,0.8606586,64499.0,64498.0,0.1474]
[1721369934635,0.465144,64496.0,64495.0,0.0666]
[1721369934848,0.465144,64496.0,64494.0,0.078313]
[1721369934849,0.465151,64495.0,64494.0,0.078313]
[1721369935049,0.83715925,64495.0,64494.0,0.078313]
[1721369935630,0.52705825,64495.0,64494.0,0.078313]
[1721369935857,0.15505,64495.0,64494.0,0.140813]
[1721369937468,0.15505,64495.0,64494.0,0.143813]
[1721369939511,0.04639058,64499.0,64496.0,0.0612]
[1721369939741,0.06958588,64501.0,64496.0,0.0612]
[1721369939742,0.155045,64498.0,64496.0,0.0612]
[1721369940499,0.155045,64497.0,64496.0,0.0612]
[1721369942108,0.2634178,64497.0,64496.0,0.0612]
[1721369942309,0.21697849,64497.0,64496.0,0.0622]
[1721369942534,0.26342233,64497.0,64496.0,0.0622]
[1721369942931,0.26342233,64497.0,64496.0,0.0632]
[1721369943252,0.21697849,64497.0,64496.0,0.0632]
[1721369943920,0.155045,64497.0,64496.0,0.0632]
[1721369944093,0.20148877,64497.0,64496.0,0.0632]
[1721369944294,0.26349832,64497.0,64496.0,0.0632]
[1721369944521,0.20148682,64497.0,64496.0,0.0632]
[1721369944742,0.26260985,64497.0,64496.0,0.0632]
[1721369945730,0.10756485,64497.0,64496.0,0.1383]
[1721369945972,0.10756485,64497.0,64496.0,0.91354]
[1721369945973,0.06112303,64497.0,64496.0,0.91354]
[1721369946149,0.04644182,64501.0,64499.0,0.1376]
[1721369946366,0.04644182,64501.0,64500.0,0.1376]
[1721369946555,0.09288365,64505.0,64500.0,0.298237]
[1721369946556,0.10793807,64502.0,64500.0,0.298237]
[1721369946723,0.06149625,64501.0,64500.0,0.155037]
[1721369947333,0.06149625,64501.0,64500.0,0.295837]
[1721369947512,0.06949625,64501.0,64500.0,0.295837]
[1721369947711,0.06958233,64501.0,64500.0,0.295837]
[1721369949321,0.07358233,64501.0,64500.0,0.295837]
[1721369949791,0.06558233,64501.0,64500.0,0.295837]
[1721369949971,0.06558233,64501.0,64500.0,0.296837]
[1721369950214,0.06158233,64501.0,64500.0,0.296837]
[1721369950424,0.06158233,64503.0,64500.0,0.297837]
[1721369950641,0.06158233,64503.0,64501.0,0.155036]
[1721369950863,0.06158233,64503.0,64502.0,0.1385]
[1721369952184,0.06158233,64503.0,64502.0,0.1405]
[1721369952432,0.52667633,64503.0,64502.0,0.002]
[1721369952671,1.16980233,64503.0,64502.0,0.002]
[1721369952885,1.45135721,64503.0,64502.0,0.002]
[1721369953095,1.35851795,64503.0,64502.0,0.002]
[1721369953547,1.29693562,64503.0,64502.0,0.002]
[1721369953760,1.35825132,64503.0,64502.0,0.004]
[1721369953978,1.32391744,64503.0,64502.0,0.004]
[1721369954202,1.37417117,64503.0,64502.0,0.004]
[1721369954426,1.47025408,64503.0,64502.0,0.004]
[1721369954644,1.72921168,64503.0,64502.0,0.004]
[1721369954931,1.72921168,64503.0,64502.0,0.002]
[1721369955351,1.68521168,64503.0,64502.0,0.003]
[1721369955575,1.58912646,64503.0,64502.0,0.003]
[1721369955811,1.58912646,64503.0,64502.0,0.001]
[1721369955812,1.43017689,64503.0,64502.0,0.001]
[1721369956240,1.43617689,64503.0,64502.0,0.002]
[1721369956444,1.43617689,64503.0,64502.0,0.001]
[1721369956649,1.59052646,64503.0,64502.0,0.001]
[1721369956869,1.59652646,64503.0,64502.0,0.002]
[1721369957086,1.58452646,64503.0,64502.0,0.001]
[1721369957332,0.775227,64497.0,64496.0,0.000913]
[1721369957512,0.798227,64497.0,64496.0,0.000913]
[1721369957733,0.92838687,64497.0,64496.0,0.000913]
[1721369958189,0.95160556,64497.0,64496.0,0.000913]
[1721369958831,0.85871933,64497.0,64496.0,0.000913]
[1721369959106,1.57754164,64497.0,64496.0,0.000913]
[1721369959354,1.47754164,64497.0,64496.0,0.000913]
[1721369959840,1.47754164,64497.0,64496.0,0.001913]
[1721369960100,1.61687098,64497.0,64496.0,0.001913]
[1721369960330,1.41704931,64497.0,64496.0,0.002913]
[1721369960576,1.61737736,64497.0,64496.0,0.002913]
[1721369960823,2.03361029,64497.0,64496.0,0.002913]
[1721369961850,2.03361029,64497.0,64496.0,0.001913]
[1721369962333,2.04061029,64497.0,64496.0,0.002913]
[1721369963307,2.04061029,64497.0,64496.0,0.001913]
[1721369963559,2.03338364,64497.0,64496.0,0.000913]
[1721369963817,2.03938364,64497.0,64496.0,0.001913]
[1721369964080,2.04738364,64497.0,64496.0,0.001913]
[1721369964342,2.04738364,64497.0,64496.0,0.002913]
[1721369964343,2.05338364,64497.0,64496.0,0.002913]
[1721369964586,2.04538364,64497.0,64496.0,0.001913]
[1721369964837,2.05338364,64497.0,64496.0,0.002913]
[1721369965357,2.21020574,64497.0,64496.0,0.002913]
[1721369965844,1.84903407,64497.0,64496.0,0.002913]
[1721369966093,1.75363623,64497.0,64496.0,0.002913]
[1721369966636,1.75353137,64497.0,64496.0,0.002913]
[1721369968563,1.80353137,64497.0,64496.0,0.002913]
[1721369968804,1.75353137,64497.0,64496.0,0.002913]
[1721369969039,1.95788094,64497.0,64496.0,0.002913]
[1721369969744,1.89714031,64497.0,64496.0,0.002913]
[1721369970022,1.9577989,64497.0,64496.0,0.002913]
[1721369972219,2.05300989,64497.0,64496.0,0.002913]
[1721369972464,1.9577989,64497.0,64496.0,0.002913]
[1721369972710,2.05671118,64497.0,64496.0,0.002913]
[1721369972946,2.05661067,64497.0,64496.0,0.002913]
[1721369973441,2.05751067,64497.0,64496.0,0.002913]
[1721369974187,2.05745075,64497.0,64496.0,0.002913]
[1721369975183,1.84850118,64497.0,64496.0,0.002913]
[1721369975458,1.75336364,64497.0,64496.0,0.002913]
[1721369975715,1.80336364,64497.0,64496.0,0.002913]
[1721369976168,1.80347882,64497.0,64496.0,0.002913]
[1721369976976,1.75347882,64497.0,64496.0,0.002913]
[1721369977404,2.00312127,64497.0,64496.0,0.002913]
[1721369977652,2.0031699,64497.0,64496.0,0.002913]
[1721369977830,1.05125659,64497.0,64496.0,0.144613]
[1721369978034,0.95596371,64497.0,64496.0,0.144613]
[1721369978233,1.26605471,64497.0,64496.0,0.144613]
[1721369979196,1.205318,64497.0,64496.0,0.144613]
[1721369979407,1.205318,64497.0,64496.0,0.143613]
[1721369979408,1.5489435,64497.0,64496.0,0.143613]
[1721369979609,1.5489435,64497.0,64496.0,0.144613]
[1721369979817,1.5789435,64497.0,64496.0,0.144613]
[1721369980038,1.44211489,64497.0,64496.0,0.144613]
[1721369980254,1.44211489,64497.0,64496.0,0.143613]
[1721369980912,1.43011489,64497.0,64496.0,0.143613]
[1721369981114,1.43011489,64497.0,64496.0,0.144613]
[1721369981311,1.43511489,64497.0,64496.0,0.144613]
[1721369982523,1.4352534,64497.0,64496.0,0.144613]
[1721369983349,1.46271673,64497.0,64496.0,0.144613]
[1721369983958,1.1251624,64497.0,64496.0,0.144613]
[1721369984320,1.08683277,64497.0,64496.0,0.144613]
[1721369984520,0.97078066,64497.0,64496.0,0.144613]
[1721369985205,1.08683277,64497.0,64496.0,0.144613]
[1721369985687,1.08701111,64497.0,64496.0,0.144613]
[1721369986304,0.34361563,64497.0,64496.0,0.144613]
[1721369986506,0.25077397,64497.0,64496.0,0.144613]
[1721369986885,0.56086497,64497.0,64496.0,0.144613]
[1721369987497,0.55586497,64497.0,64496.0,0.143613]
[1721369987887,0.55386497,64497.0,64496.0,0.143613]
[1721369988090,0.55386497,64497.0,64496.0,0.142613]
[1721369988491,0.55886497,64497.0,64496.0,0.143613]
[1721369988669,0.310019,64513.0,64498.0,0.0652]
[1721369988871,0.155041,64499.0,64498.0,0.0652]
[1721369989095,0.8362177,64499.0,64498.0,0.0652]
[1721369989508,0.64219676,64499.0,64498.0,0.0652]
[1721369989933,0.5261357,64499.0,64498.0,0.0652]
[1721369990543,0.5261357,64499.0,64498.0,0.1431]
[1721369990776,0.5321357,64499.0,64498.0,0.1441]
[1721369990950,0.5321357,64499.0,64498.0,0.1451]
[1721369991899,0.60177731,64499.0,64498.0,0.1451]
[1721369992102,0.61805032,64499.0,64498.0,0.1451]
[1721369993455,0.52519469,64499.0,64498.0,0.1451]
[1721369995212,0.64130735,64499.0,64498.0,0.1451]
[1721369995553,0.33122535,64499.0,64498.0,0.1951]
[1721369996037,0.21511269,64499.0,64498.0,0.1951]
[1721369996443,0.33122535,64499.0,64498.0,0.1951]
[1721369996803,0.33122535,64499.0,64498.0,0.1451]
[1721369997009,0.33122535,64499.0,64498.0,0.002]
[1721369997010,1.41585309,64499.0,64498.0,0.002]
[1721369997209,1.32274043,64499.0,64498.0,0.002]
[1721369998219,1.26866874,64499.0,64498.0,0.002]
[1721369998467,1.32314299,64499.0,64498.0,0.002]
[1721369998643,1.32314299,64499.0,64498.0,0.0659]
[1721369999872,1.32314299,64499.0,64498.0,0.002]
[1721370000620,1.32314299,64499.0,64498.0,0.0774]
[1721370001026,1.32296425,64499.0,64498.0,0.0774]
[1721370003311,1.32296425,64499.0,64498.0,0.002]
[1721370004487,1.4624359,64499.0,64498.0,0.002]
[1721370004995,1.32296425,64499.0,64498.0,0.002]
[1721370006196,1.32296425,64499.0,64498.0,0.0636]
[1721370006405,1.32296425,64499.0,64498.0,0.1424]
[1721370006978,1.26866874,64499.0,64498.0,0.1424]
[1721370007179,1.32330103,64499.0,64498.0,0.1424]
[1721370010222,1.32325612,64499.0,64498.0,0.1424]
[1721370013539,2.19937831,64499.0,64498.0,0.002]
[1721370013747,2.79069066,64499.0,64498.0,0.002]
[1721370013980,2.79069066,64499.0,64496.0,4.9e-07]
[1721370013981,1.089018,64497.0,64496.0,4.9e-07]
[1721370014187,1.089018,64497.0,64494.0,0.000913]
[1721370014188,0.465151,64495.0,64494.0,0.000913]
[1721370014394,0.96518,64491.0,64490.0,0.000913]
[1721370014596,1.29116159,64491.0,64490.0,0.000913]
[1721370014796,2.01140159,64491.0,64490.0,0.000913]
[1721370015003,2.47587116,64491.0,64490.0,0.000913]
[1721370015821,2.48287116,64491.0,64490.0,0.001913]
[1721370016323,2.33887131,64491.0,64490.0,0.001913]
[1721370016523,2.48565516,64491.0,64490.0,0.001913]
[1721370017291,2.49065516,64491.0,64490.0,0.002913]
[1721370017736,2.34387131,64491.0,64490.0,0.002913]
[1721370017912,2.49093197,64491.0,64490.0,0.002913]
[1721370019858,2.49091486,64491.0,64490.0,0.002913]
[1721370020212,2.64763585,64491.0,64490.0,0.002913]
[1721370021243,2.95775585,64491.0,64490.0,0.002913]
[1721370021416,1.39567,64485.0,64475.0,0.07148745]
[1721370021638,1.82009529,64485.0,64475.0,0.07148745]
[1721370022042,2.13024429,64485.0,64475.0,0.07148745]
[1721370022243,2.13484429,64485.0,64475.0,0.07148745]
[1721370022867,1.67305174,64485.0,64475.0,0.07148745]
[1721370023214,1.82086727,64485.0,64475.0,0.07148745]
[1721370023764,1.39642555,64485.0,64484.0,0.148013]
[1721370024379,1.10027655,64485.0,64484.0,0.148013]
[1721370024539,1.21625862,64485.0,64484.0,0.148013]
[1721370024739,1.11427655,64485.0,64484.0,0.149013]
[1721370024938,1.11427655,64485.0,64484.0,0.148013]
[1721370025138,1.20705857,64485.0,64484.0,0.148013]
[1721370025341,1.11427655,64485.0,64484.0,0.149013]
[1721370025542,1.20705788,64485.0,64484.0,0.149013]
[1721370025749,1.22105319,64485.0,64484.0,0.149013]
[1721370025945,1.12827655,64485.0,64484.0,0.149013]
[1721370026158,0.99593724,64485.0,64484.0,0.149013]
[1721370026349,1.04251881,64485.0,64484.0,0.149013]
[1721370027023,1.02851881,64485.0,64484.0,0.149013]
[1721370027425,1.54085167,64485.0,64484.0,0.001913]
[1721370027628,1.56385167,64485.0,64484.0,0.001913]
[1721370027855,1.44646798,64485.0,64484.0,0.001913]
[1721370028227,1.42546798,64485.0,64484.0,0.000913]
[1721370028427,1.43146798,64485.0,64484.0,0.000913]
[1721370028628,1.42446798,64485.0,64484.0,0.000913]
[1721370028834,1.41846798,64485.0,64484.0,0.000913]
[1721370029030,1.42946798,64485.0,64484.0,0.000913]
[1721370029236,1.4402352,64485.0,64484.0,0.000913]
[1721370030284,1.55617458,64485.0,64484.0,0.000913]
[1721370030530,1.55617069,64485.0,64484.0,0.000913]
[1721370030699,1.4402352,64485.0,64484.0,0.000913]
[1721370030902,1.55617024,64485.0,64484.0,0.000913]
[1721370033293,1.59458477,64485.0,64484.0,0.000913]
[1721370033742,1.99564106,64485.0,64484.0,0.000913]
[1721370035571,1.99615661,64485.0,64484.0,0.000913]
[1721370037158,1.84180704,64485.0,64484.0,0.000913]
[1721370038765,1.84198948,64485.0,64484.0,0.000913]
[1721370042039,1.84194865,64485.0,64484.0,0.000913]
[1721370042523,1.53179965,64485.0,64484.0,0.000913]
[1721370042969,1.84194865,64485.0,64484.0,0.000913]
[1721370044455,1.53179965,64485.0,64484.0,0.000913]
[1721370045254,1.53243253,64485.0,64484.0,0.000913]
[1721370046126,1.53243253,64485.0,64484.0,0.145513]
[1721370047545,1.53243253,64485.0,64484.0,0.000913]
[1721370047774,1.6788741,64485.0,64484.0,0.000913]
[1721370048434,1.67948765,64485.0,64484.0,0.000913]
[1721370048639,1.98963665,64485.0,64484.0,0.000913]
[1721370048840,1.53304608,64485.0,64484.0,0.000913]
[1721370051078,1.53304608,64485.0,64484.0,0.062313]
[1721370051444,1.38390274,64485.0,64484.0,0.137613]
[1721370051655,1.53198709,64485.0,64484.0,0.137613]
[1721370054571,1.47539143,64485.0,64484.0,0.137613]
[1721370054789,1.53212544,64485.0,64484.0,0.137613]
[1721370055191,1.67147003,64485.0,64484.0,0.137613]
[1721370056470,1.53212544,64485.0,64484.0,0.137613]
[1721370057844,1.47528945,64485.0,64484.0,0.137613]
[1721370058143,1.84206508,64485.0,64484.0,0.137613]
[1721370058645,1.99898805,64485.0,64484.0,0.137613]
[1721370059258,1.84206508,64485.0,64484.0,0.137613]
[1721370060703,1.85809753,64485.0,64484.0,0.137613]
[1721370061122,1.85809753,64485.0,64484.0,0.000913]
[1721370061628,1.84199023,64485.0,64484.0,0.000913]
[1721370063273,2.00420074,64485.0,64484.0,0.000913]
[1721370063495,1.93211061,64485.0,64484.0,0.000913]
[1721370066526,1.84132475,64485.0,64484.0,0.000913]
[1721370066654,1.93242823,64485.0,64484.0,0.000913]
[1721370069298,2.24257723,64485.0,64484.0,0.000913]
[1721370069501,2.09514674,64485.0,64484.0,0.000913]
[1721370069860,2.09514674,64485.0,64476.0,0.000913]
[1721370069861,0.5,64477.0,64476.0,0.000913]
[1721370069985,0.5,64477.0,64450.0,0.05]
[1721370069986,0.155106,64472.0,64448.0,0.011968]
[1721370070188,1.0761124,64472.0,64449.0,0.002794]
[1721370070392,1.8195364,64472.0,64465.0,0.1414]
[1721370070599,2.1297484,64472.0,64465.0,0.1414]
[1721370070846,2.3195364,64472.0,64471.0,0.074852]
[1721370071251,2.3335364,64472.0,64471.0,0.075852]
[1721370071759,2.3375364,64472.0,64471.0,0.075852]
[1721370072177,2.3375364,64472.0,64471.0,0.074852]
[1721370072178,2.3235364,64472.0,64471.0,0.074852]
[1721370072630,2.33168531,64472.0,64471.0,0.074852]
[1721370072834,2.32755916,64472.0,64471.0,0.074852]
[1721370073035,2.32355916,64472.0,64471.0,0.074852]
[1721370073386,2.33755916,64472.0,64471.0,0.074852]
[1721370073590,2.35155916,64472.0,64471.0,0.075852]
[1721370073785,2.33755916,64472.0,64471.0,0.074852]
[1721370073990,2.49190873,64472.0,64471.0,0.074852]
[1721370074189,2.50590873,64472.0,64471.0,0.075852]
[1721370074451,2.50590873,64472.0,64471.0,0.010152]
[1721370075482,2.50590873,64472.0,64471.0,0.009152]
[1721370075652,2.49190873,64472.0,64471.0,0.009152]
[1721370075892,2.34168531,64472.0,64471.0,0.009152]
[1721370076094,2.49196965,64472.0,64471.0,0.009152]
[1721370076427,2.64429283,64472.0,64471.0,0.009152]
[1721370076627,2.65829283,64472.0,64471.0,0.009152]
[1721370076981,2.65829283,64472.0,64471.0,0.010152]
[1721370076982,2.67229283,64472.0,64471.0,0.010152]
[1721370077952,2.5154277,64472.0,64471.0,0.010152]
[1721370078159,2.67223161,64472.0,64471.0,0.010152]
[1721370078415,2.51539175,64472.0,64471.0,0.010152]
[1721370078586,2.67223161,64472.0,64471.0,0.010152]
[1721370078892,2.67223161,64472.0,64451.0,0.002]
[1721370078893,1.396147,64463.0,64462.0,0.1439]
[1721370079092,1.87035548,64463.0,64462.0,0.1439]
[1721370079321,1.7309464,64463.0,64462.0,0.1439]
[1721370079840,0.5,64453.0,64452.0,0.1443]
[1721370080044,2.32330583,64453.0,64452.0,0.1443]
[1721370080244,2.32330583,64453.0,64452.0,0.14700199]
[1721370080666,2.63360883,64453.0,64452.0,0.00270199]
[1721370080883,2.7879584,64453.0,64452.0,0.00270199]
[1721370081675,2.7889584,64453.0,64452.0,0.00270199]
[1721370082279,2.78999129,64453.0,64452.0,0.00270199]
[1721370083042,2.63564172,64453.0,64452.0,0.00270199]
[1721370083990,2.65064172,64453.0,64452.0,0.00270199]
[1721370084209,2.78975852,64453.0,64452.0,0.00270199]
[1721370084415,2.63464172,64453.0,64452.0,0.00270199]
[1721370084609,2.64864172,64453.0,64452.0,0.00270199]
[1721370084841,2.66264172,64453.0,64452.0,0.00270199]
[1721370085008,2.74936595,64453.0,64452.0,0.00270199]
[1721370085411,2.72104889,64453.0,64452.0,0.00270199]
[1721370085630,2.81355191,64453.0,64452.0,0.00270199]
[1721370085789,2.84155191,64453.0,64452.0,0.00270199]
[1721370086009,2.84155191,64453.0,64451.0,0.002]
[1721370086010,1.706694,64452.0,64451.0,9.9e-07]
[1721370086214,2.28870223,64452.0,64451.0,9.9e-07]
[1721370086419,2.28794687,64452.0,64451.0,9.9e-07]
[1721370087292,2.28794687,64452.0,64448.0,9.9e-07]
[1721370087293,1.706771,64449.0,64448.0,9.9e-07]
[1721370087453,2.28802387,64449.0,64448.0,9.9e-07]
[1721370088714,1.706798,64448.0,64447.0,9.9e-07]
[1721370088905,2.13342272,64448.0,64447.0,9.9e-07]
[1721370090150,2.13342272,64448.0,64439.0,0.1446]
[1721370090151,2.206881,64445.0,64444.0,1.50791399]
[1721370090506,2.58776842,64445.0,64444.0,1.50791399]
[1721370090696,2.74211799,64445.0,64444.0,1.50791399]
[1721370091305,2.69585428,64445.0,64444.0,1.50791399]
[1721370091509,2.70985428,64445.0,64444.0,1.50791399]
[1721370091708,2.70964448,64445.0,64444.0,1.50791399]
[1721370092012,2.72364448,64445.0,64444.0,1.50791399]
[1721370094022,2.72734448,64445.0,64444.0,1.35273899]
[1721370094226,2.72734448,64445.0,64444.0,1.25066327]
[1721370094227,2.81974432,64445.0,64444.0,1.25066327]
[1721370094779,2.79141927,64445.0,64444.0,1.25066327]
[1721370095203,3.92641927,64445.0,64444.0,1.19462827]
[1721370095419,3.7534697,64445.0,64444.0,1.19462827]
[1721370095785,3.7674697,64445.0,64444.0,1.19462827]
[1721370097150,3.7534697,64445.0,64444.0,1.19462827]
[1721370097382,3.7394697,64445.0,64444.0,1.19462827]
[1721370097568,3.7534697,64445.0,64444.0,1.33752827]
[1721370097775,3.61926274,64445.0,64444.0,1.33752827]
[1721370097948,3.71258881,64445.0,64444.0,1.33752827]
[1721370098152,3.66186064,64445.0,64444.0,1.33752827]
[1721370098534,3.67586064,64445.0,64444.0,1.33752827]
[1721370098748,3.67143576,64445.0,64444.0,1.33752827]
[1721370099264,3.68543576,64445.0,64444.0,1.33627827]
[1721370100074,3.83861246,64445.0,64444.0,1.33627827]
[1721370100273,3.24761576,64445.0,64444.0,1.33627827]
[1721370100473,3.73361576,64445.0,64444.0,1.33627827]
[1721370100672,3.73630071,64445.0,64444.0,1.33627827]
[1721370100880,3.75030071,64445.0,64444.0,1.19337827]
[1721370101078,3.76364838,64445.0,64444.0,1.19337827]
[1721370101344,3.85441562,64445.0,64444.0,1.19337827]
[1721370101543,3.83773067,64445.0,64444.0,1.19337827]
[1721370101875,3.73296343,64445.0,64444.0,1.19337827]
[1721370103572,1.73044143,64445.0,64444.0,1.33707827]
[1721370103927,1.74444143,64445.0,64444.0,1.33707727]
[1721370104279,1.72977317,64445.0,64444.0,1.33707727]
[1721370104699,1.75777317,64445.0,64444.0,1.33707727]
[1721370104883,1.76677317,64445.0,64444.0,1.33707727]
[1721370106235,1.90712274,64445.0,64444.0,1.33707727]
[1721370107366,1.92051297,64445.0,64444.0,1.33707727]
[1721370107573,1.89251297,64445.0,64444.0,1.33707727]
[1721370107740,1.90651297,64445.0,64444.0,1.33707727]
[1721370108252,1.8416195,64445.0,64444.0,1.33707727]
[1721370108681,1.8556195,64445.0,64444.0,1.33707727]
[1721370109819,1.8556195,64445.0,64444.0,1.19337727]
[1721370113434,1.8556195,64445.0,64444.0,0.98640536]
[1721370113687,1.8556195,64445.0,64444.0,0.64576365]
[1721370113688,2.67302905,64445.0,64444.0,0.64576365]
[1721370113899,2.5074615,64445.0,64444.0,0.64576365]
[1721370114298,2.8178035,64445.0,64444.0,0.64576365]
[1721370114501,2.95683324,64445.0,64444.0,0.61472865]
[1721370114674,2.29214167,64445.0,64444.0,0.58369365]
[1721370114840,2.35899646,64445.0,64444.0,0.58369365]
[1721370115024,2.15311193,64445.0,64444.0,0.58369365]
[1721370115223,2.65311193,64445.0,64444.0,0.58369365]
[1721370116095,2.65401193,64445.0,64444.0,0.58369365]
[1721370116369,2.8083615,64445.0,64444.0,0.45955365]
[1721370116565,2.94823117,64445.0,64444.0,0.33541365]
[1721370116763,2.94733117,64445.0,64444.0,0.30437865]